[Event "Lliga Catalana 2024"]
[Site "Catalonia"]
[Date "2024.03.09"]
[Round "1.5"]
[White "Boix Moreno, Daniel"]
[Black "Shatko, Danil"]
[Result "1/2-1/2"]
[ECO "C04"]
[WhiteElo "2239"]
[BlackElo "2195"]
[Annotator "TA"]
[PlyCount "72"]
[EventDate "2024.01.18"]
[EventType "team-tourn"]
[EventCountry "ESP"]
[SourceTitle "playchess.com"]
[Source "ChessBase"]
[SourceQuality "1"]
[TimeControl "5400+30"]

{[%evp 18,72,29,6,32,31,30,0,0,-21,-9,-19,-6,-63,-52,-61,-28,-118,-35,-32,0,0,0,0,0,0,0,0,0,0,0,0,0,-5,-4,-11,8,-31,27,0,0,0,0,0,0,0,0,0,0,0,0,0,0,0,0,0,0]} 1. e4 {[%emt 0:14:42]} e6 {[%emt 0:00:10]} 2. d4 {[%emt 0:00:10]} d5 {[%emt 0:00:06]} 3. Nd2 {[%emt 0:00:15]} Nf6 {[%emt 0:00:07]} 4. e5 {[%emt 0:00:36]} Nfd7 {[%emt 0:00:07]} 5. Ngf3 {[%emt 0:00:11]} c5 {[%emt 0:00:10]} 6. c3 {[%emt 0:00:18]} b6 {[%emt 0:02:00]} 7. Bb5 {[%emt 0:01:15]} Ba6 {[%emt 0:01:32]} 8. a4 {[%emt 0:00:52]} Be7 {[%emt 0:05:21]} 9. O-O {[%emt 0:00:38]} O-O {[%emt 0:00:11]} 10. Re1 {[%emt 0:00:34]} Qc8 {[%emt 0:03:20]} 11. Nf1 {[%emt 0:09:20][%cal Oc3c4]} Nc6 {[%emt 0:00:39][%cal Bb8c6,Bc6a5,Ba5c4,Bc4a3][%mdl 32]} 12. Bd2 {[%emt 0:08:53]} Na5 {[%emt 0:07:03]} 13. b4 {[%emt 0:18:08]} Bxb5 {[%emt 0:03:20]} 14. axb5 {[%emt 0:00:25]} Nc4 {[%emt 0:01:12]} 15. Qb3 {[%emt 0:10:47]} (15. Ne3 $11) 15... cxd4 $15 {[%emt 0:06:37]} 16. cxd4 {[%emt 0:00:20]} a6 {[%emt 0:02:31]} 17. Qa4 {[%emt 0:09:38]} (17. Rxa6 $11 Rxa6 18. bxa6 Qxa6 19. b5) 17... axb5 {[%emt 0:00:07]} (17... a5 $17 {...axb4 wäre nun fies.} 18. bxa5 bxa5) 18. Qxb5 {[%emt 0:00:02] [#] Schwarz muss nun Rxa8 beachten.} Na3 {[%emt 0:00:18]} 19. Qd3 {[%emt 0:00:06]} Nc4 {[%emt 0:06:44]} 20. b5 {[%emt 0:01:02]} Rxa1 {[%emt 0:15:22]} 21. Rxa1 {[%emt 0:00:25]} f6 {[%emt 0:00:04]} 22. exf6 {[%emt 0:01:34]} Nxf6 {[%emt 0:00:30]} 23. Bg5 {[%emt 0:09:54]} Qd7 {[%emt 0:02:50]} 24. Re1 {[%emt 0:00:52]} Ne4 {[%emt 0:03:16]} 25. Bxe7 {[%emt 0:00:23]} Qxe7 {[%emt 0:00:01]} 26. Ng3 {[%emt 0:01:22]} Ncd6 {[%emt 0:06:39]} 27. Qa3 {[%emt 0:04:25]} Qd7 {[%emt 0:01:31]} (27... Nxf2 $15 28. Rc1 (28. Kxf2 $2 {verliert.} Ne4+ 29. Rxe4 Qxa3 $19) 28... Nfe4) 28. Nxe4 {[%emt 0:00:20]} (28. Ne5 $5 Qd8 (28... Qxb5 29. f3 $14) 29. Nxe4 Nxe4 30. Rf1 $17) 28... Nxe4 {[%emt 0:00:30] Die Stellung ist ausgeglichen.} 29. Qa6 {[%emt 0:00:20]} Qc7 {[%emt 0:00:16]} 30. h3 {[%emt 0:01:18]} h6 {[%emt 0:03:19] [#] Droht ...Qc2 und aus.} 31. Rf1 {[%emt 0:02:50]} Nc3 {[%emt 0:04:39]} 32. Re1 {[%emt 0:00:16]} Ne4 {[%emt 0:00:49] Zielt auf ...Qc2 ab.} 33. Rf1 {[%emt 0:00:04]} Kh7 {[%emt 0:00:08][%cal Of8f3]} 34. Qa3 {[%emt 0:00:38]} Rc8 {[%emt 0:02:15]} 35. Qa6 {[%emt 0:00:18]} Rf8 {[%emt 0:04:54][%cal Of8f3]} 36. Qa3 {[%emt 0:00:05]} Rc8 {[%emt 0:00:39] Gewichteter Fehlerwert: Weiß=0.15 (sehr präzise) /Schwarz=0.14 (sehr präzise) .  Fehler:       	Weiß=2     	Schwarz=2     Ungenau:       	Weiß=3     	Schwarz=2     OK:         	Weiß=12    	Schwarz=15} 1/2-1/2

[Event "Lliga Catalana 2024"]
[Site "Catalonia"]
[Date "2024.01.20"]
[Round "1.6"]
[White "Martinez Ramirez, Erik"]
[Black "Alcala Gonzalez, Cesar"]
[Result "1/2-1/2"]
[ECO "B15"]
[WhiteElo "2241"]
[BlackElo "2247"]
[Annotator "RC"]
[PlyCount "36"]
[EventDate "2024.01.18"]
[EventType "team-tourn"]
[EventCountry "ESP"]
[SourceTitle "playchess.com"]
[Source "ChessBase"]
[SourceQuality "1"]
[TimeControl "5400+30"]

1. e4 {[%emt 0:00:03]} c6 {[%emt 0:00:06]} 2. d4 {[%emt 0:00:09]} d5 {[%emt 0:00:05]} 3. Nd2 {[%emt 0:00:10]} dxe4 {[%emt 0:00:04]} 4. Nxe4 {[%emt 0:00:05]} Nf6 {[%emt 0:00:04]} 5. Nxf6+ {[%emt 0:00:24]} exf6 {[%emt 0:00:02]} 6. c3 {[%emt 0:01:15]} Bd6 {[%emt 0:00:04]} 7. Bd3 {[%emt 0:00:07]} O-O {[%emt 0:00:06]} 8. Qc2 {[%emt 0:00:05]} Re8+ {[%emt 0:00:04]} 9. Ne2 {[%emt 0:00:33]} h5 {[%emt 0:00:04]} 10. Be3 {[%emt 0:01:50]} Nd7 {[%emt 0:00:07]} 11. c4 {[%emt 0:02:37]} Nf8 {[%emt 0:00:21]} 12. O-O-O {[%emt 0:03:30]} Be6 {[%emt 0:00:46]} 13. Kb1 {[%emt 0:00:41]} Rc8 {[%emt 0:02:24]} 14. Nc3 {[%emt 0:03:33]} Bb4 {[%emt 0:18:59]} 15. Ne4 {[%emt 0:00:23]} Be7 {[%emt 0:22:53]} 16. Nc3 {[%emt 0:00:32]} Bb4 {[%emt 0:01:47]} 17. Ne4 {[%emt 0:00:09]} Be7 {[%emt 0:01:22]} 18. Nc3 {[%emt 0:00:13]} Bb4 {[%emt 0:00:05]} 1/2-1/2

[Event "Lliga Catalana 2024"]
[Site "Catalonia"]
[Date "2024.01.20"]
[Round "1.6"]
[White "Molina Carretero, Daniel"]
[Black "Escandell Mari, Juan Carlos"]
[Result "1/2-1/2"]
[ECO "A25"]
[WhiteElo "2180"]
[BlackElo "2195"]
[Annotator "RC"]
[PlyCount "93"]
[EventDate "2024.01.18"]
[EventType "team-tourn"]
[EventCountry "ESP"]
[SourceTitle "playchess.com"]
[Source "ChessBase"]
[SourceQuality "1"]
[TimeControl "5400+30"]

1. c4 {[%emt 0:00:06]} Nf6 {[%emt 0:00:30]} 2. g3 {[%emt 0:00:17]} e5 {[%emt 0:00:21]} 3. Bg2 {[%emt 0:00:57]} Nc6 {[%emt 0:00:27]} 4. Nc3 {[%emt 0:00:32]} Bb4 {[%emt 0:01:50]} 5. Nd5 {[%emt 0:00:42]} Bc5 {[%emt 0:01:29]} 6. e3 {[%emt 0:01:18]} O-O {[%emt 0:01:19]} 7. a3 {[%emt 0:01:09]} Nxd5 {[%emt 0:05:38]} 8. cxd5 {[%emt 0:00:36]} Ne7 {[%emt 0:00:06]} 9. Ne2 {[%emt 0:04:15]} d6 {[%emt 0:05:18]} 10. d4 {[%emt 0:10:10]} exd4 {[%emt 0:06:40]} 11. Nxd4 {[%emt 0:01:55]} Nf5 {[%emt 0:01:01]} 12. Nc2 {[%emt 0:02:18]} a5 {[%emt 0:05:43]} 13. b3 {[%emt 0:13:42]} Qf6 {[%emt 0:04:04]} 14. O-O {[%emt 0:07:06]} Bd7 {[%emt 0:02:19]} 15. Qd3 {[%emt 0:05:45]} h5 {[%emt 0:20:03]} 16. Bd2 {[%emt 0:03:02]} h4 {[%emt 0:03:47]} 17. Bc3 {[%emt 0:04:18]} Qh6 {[%emt 0:03:34]} 18. Nd4 {[%emt 0:01:58]} hxg3 {[%emt 0:04:01]} 19. hxg3 {[%emt 0:00:21]} Qh5 {[%emt 0:00:46]} 20. Nxf5 {[%emt 0:13:14]} Bxf5 {[%emt 0:00:21]} 21. Qd2 {[%emt 0:01:47]} Rfe8 {[%emt 0:16:16]} 22. Bxa5 {[%emt 0:01:58]} Re4 {[%emt 0:07:50]} 23. Rac1 {[%emt 0:05:22]} Rae8 {[%emt 0:02:34]} 24. Rxc5 {[%emt 0:00:50]} dxc5 {[%emt 0:00:23]} 25. Bxc7 {[%emt 0:00:12]} R4e7 {[%emt 0:03:09]} 26. d6 {[%emt 0:00:23]} Rd7 {[%emt 0:00:32]} 27. Qd5 {[%emt 0:02:34]} Re6 {[%emt 0:01:52]} 28. Rd1 {[%emt 0:04:19]} Re5 {[%emt 0:00:40]} 29. Qd2 {[%emt 0:01:48]} Bg4 {[%emt 0:00:13]} 30. Rc1 {[%emt 0:02:17]} Bf3 {[%emt 0:01:13]} 31. Qa5 {[%emt 0:01:09]} Rf5 {[%emt 0:00:45]} 32. Rc4 {[%emt 0:10:10]} g5 {[%emt 0:00:50]} 33. g4 {[%emt 0:00:00]} Bxg4 {[%emt 0:00:42]} 34. Rxc5 {[%emt 0:00:00]} Rxc5 {[%emt 0:00:34]} 35. Qxc5 {[%emt 0:00:00]} Bf3 {[%emt 0:00:27]} 36. Bxf3 {[%emt 0:00:00]} Qxf3 {[%emt 0:00:01]} 37. Qxg5+ {[%emt 0:00:00]} Kf8 {[%emt 0:00:29]} 38. Qh6+ {[%emt 0:00:00]} Kg8 {[%emt 0:00:14]} 39. Qg5+ {[%emt 0:00:00]} Kf8 {[%emt 0:00:02]} 40. Qe5 {[%emt 0:00:00]} Qg4+ {[%emt 0:00:31]} 41. Kf1 {[%emt 0:00:00]} Qd1+ {[%emt 0:00:19]} 42. Kg2 {[%emt 0:00:00]} Qg4+ {[%emt 0:00:15]} 43. Qg3 {[%emt 0:00:10]} Qe4+ {[%emt 0:01:34]} 44. Qf3 {[%emt 0:00:30]} Qg6+ {[%emt 0:00:20]} 45. Qg3 {[%emt 0:00:57]} Qe4+ {[%emt 0:00:06]} 46. Qf3 {[%emt 0:01:21]} Qg6+ {[%emt 0:00:05]} 47. Qg3 {[%emt 0:04:32]} 1/2-1/2

[Event "Lliga Catalana 2024"]
[Site "Catalonia"]
[Date "2024.03.09"]
[Round "1.6"]
[White "Gonzalez Maza, Rafael"]
[Black "Rivero Ojeda, Carmelo"]
[Result "1/2-1/2"]
[ECO "A48"]
[WhiteElo "2123"]
[BlackElo "2167"]
[Annotator "RC"]
[PlyCount "43"]
[EventDate "2024.01.18"]
[EventType "team-tourn"]
[EventCountry "ESP"]
[SourceTitle "playchess.com"]
[Source "ChessBase"]
[SourceQuality "1"]
[TimeControl "5400+30"]

1. d4 {[%emt 0:00:05]} Nf6 {[%emt 0:00:08]} 2. Nf3 {[%emt 0:00:02]} g6 {[%emt 0:00:07]} 3. b3 {[%emt 0:00:06]} Bg7 {[%emt 0:00:07]} 4. Bb2 {[%emt 0:00:06]} O-O {[%emt 0:00:09]} 5. e3 {[%emt 0:00:04]} a5 {[%emt 0:00:28]} 6. a3 {[%emt 0:03:00]} c6 {[%emt 0:02:40]} 7. Be2 {[%emt 0:02:42]} b5 {[%emt 0:01:20]} 8. Nbd2 {[%emt 0:06:22]} d6 {[%emt 0:01:09]} 9. O-O {[%emt 0:04:04]} Nbd7 {[%emt 0:01:07]} 10. c4 {[%emt 0:02:25]} bxc4 {[%emt 0:03:56]} 11. bxc4 {[%emt 0:00:10]} c5 {[%emt 0:01:35]} 12. d5 {[%emt 0:08:57]} Nb6 {[%emt 0:00:40]} 13. e4 {[%emt 0:05:42]} Bd7 {[%emt 0:00:45]} 14. Rb1 {[%emt 0:02:13]} Rb8 {[%emt 0:05:24]} 15. Bd3 {[%emt 0:05:09]} Na4 {[%emt 0:09:17]} 16. Ba1 {[%emt 0:00:22]} Qc7 {[%emt 0:00:18]} 17. Qc2 {[%emt 0:05:04]} Rxb1 {[%emt 0:02:22]} 18. Rxb1 {[%emt 0:00:03]} Rb8 {[%emt 0:00:03]} 19. e5 {[%emt 0:10:26]} Nh5 {[%emt 0:08:01]} 20. exd6 {[%emt 0:02:42]} exd6 {[%emt 0:02:24]} 21. Bxg7 {[%emt 0:01:10]} Kxg7 {[%emt 0:03:44]} 22. Rxb8 {[%emt 0:40:36]} 1/2-1/2

[Event "Lliga Catalana 2024"]
[Site "Catalonia"]
[Date "2024.01.20"]
[Round "1.7"]
[White "Martin Barcelo, Carles"]
[Black "Perez Manas, Benjamin"]
[Result "1-0"]
[ECO "B51"]
[WhiteElo "2222"]
[BlackElo "2222"]
[Annotator "RC"]
[PlyCount "48"]
[EventDate "2024.01.18"]
[EventType "team-tourn"]
[EventCountry "ESP"]
[SourceTitle "playchess.com"]
[Source "ChessBase"]
[SourceQuality "1"]
[TimeControl "5400+30"]

1. e4 {[%emt 0:00:04]} c5 {[%emt 0:00:36]} 2. Nf3 {[%emt 0:00:30]} d6 {[%emt 0:01:10]} 3. Bb5+ {[%emt 0:01:26]} Nd7 {[%emt 0:00:48]} 4. Ba4 {[%emt 0:01:05]} Ngf6 {[%emt 0:03:44]} 5. O-O {[%emt 0:00:44]} a6 {[%emt 0:14:53]} 6. c4 {[%emt 0:00:22]} e5 {[%emt 0:14:57]} 7. Nc3 {[%emt 0:00:25]} g6 {[%emt 0:01:57]} 8. d3 {[%emt 0:00:33]} Bg7 {[%emt 0:00:26]} 9. a3 {[%emt 0:02:24]} O-O {[%emt 0:10:31]} 10. h3 {[%emt 0:00:08]} Ne8 {[%emt 0:05:35]} 11. b4 {[%emt 0:14:20]} Nc7 {[%emt 0:07:27]} 12. Bg5 {[%emt 0:14:06]} f6 {[%emt 0:00:41]} 13. Be3 {[%emt 0:00:06]} Ne6 {[%emt 0:00:58]} 14. Rb1 {[%emt 0:04:52]} Rb8 {[%emt 0:08:56]} 15. bxc5 {[%emt 0:05:51]} dxc5 {[%emt 0:05:48]} 16. Nd5 {[%emt 0:00:32]} Nd4 {[%emt 0:00:23]} 17. Nxd4 {[%emt 0:12:05]} cxd4 {[%emt 0:00:53]} 18. Bd2 {[%emt 0:00:08]} a5 {[%emt 0:04:34]} 19. Bxd7 {[%emt 0:09:05]} Bxd7 {[%emt 0:00:18]} 20. Rb6 {[%emt 0:02:26]} a4 {[%emt 0:06:54]} 21. Bb4 {[%emt 0:14:39]} Re8 {[%emt 0:00:00]} 22. Bd6 {[%emt 0:04:45]} Rc8 {[%emt 0:02:01]} 23. Rxb7 {[%emt 0:00:37]} Bc6 {[%emt 0:00:44]} 24. Be7 {[%emt 0:03:34]} Ra8 {[%emt 0:08:16]} 1-0

[Event "Lliga Catalana 2024"]
[Site "Catalonia"]
[Date "2024.01.20"]
[Round "1.7"]
[White "Saguillo Gonzalez, Oriol"]
[Black "Triadu Cassa, Jordi"]
[Result "*"]
[ECO "C55"]
[WhiteElo "2172"]
[BlackElo "2107"]
[Annotator "RC"]
[PlyCount "33"]
[EventDate "2024.01.18"]
[EventType "team-tourn"]
[EventCountry "ESP"]
[SourceTitle "playchess.com"]
[Source "ChessBase"]
[SourceQuality "1"]
[TimeControl "5400+30"]

1. e4 {[%emt 0:00:07]} e5 {[%emt 0:00:15]} 2. Nf3 {[%emt 0:00:08]} Nc6 {[%emt 0:00:12]} 3. Bc4 {[%emt 0:00:16]} Nf6 {[%emt 0:00:08]} 4. d3 {[%emt 0:00:08]} Be7 {[%emt 0:00:08]} 5. Nc3 {[%emt 0:02:50]} d6 {[%emt 0:00:49]} 6. a4 {[%emt 0:01:29]} O-O {[%emt 0:00:08]} 7. O-O {[%emt 0:05:00]} Kh8 {[%emt 0:00:22]} 8. Ng5 {[%emt 0:10:25]} Bg4 {[%emt 0:01:04]} 9. Qd2 {[%emt 0:05:45]} Bh5 {[%emt 0:04:18]} 10. f4 {[%emt 0:02:27]} Nd7 {[%emt 0:04:12]} 11. Nd5 {[%emt 0:19:50]} Bxg5 {[%emt 0:18:55]} 12. fxg5 {[%emt 0:00:07]} Nb6 {[%emt 0:00:11]} 13. Nxb6 {[%emt 0:03:24]} axb6 {[%emt 1:06:18]} 14. Qf2 {[%emt 0:01:31]} Bg6 {[%emt 0:00:00]} 15. c3 {[%emt 0:06:20]} f5 {[%emt 0:00:00]} 16. gxf6 {[%emt 0:00:49]} Rxf6 {[%emt 0:00:00]} 17. Qe2 {[%emt 0:00:47]} *

[Event "Lliga Catalana 2024"]
[Site "Catalonia"]
[Date "2024.03.09"]
[Round "1.7"]
[White "Leiro Giralt, Daniel"]
[Black "Pham Guerrero, Sergi"]
[Result "1/2-1/2"]
[ECO "B34"]
[WhiteElo "2141"]
[BlackElo "2039"]
[Annotator "RC"]
[PlyCount "48"]
[EventDate "2024.01.18"]
[EventType "team-tourn"]
[EventCountry "ESP"]
[SourceTitle "playchess.com"]
[Source "ChessBase"]
[SourceQuality "1"]
[TimeControl "5400+30"]

1. e4 {[%emt 0:00:04]} c5 {[%emt 0:02:17]} 2. Nc3 {[%emt 0:00:10]} g6 {[%emt 0:00:12]} 3. Nge2 {[%emt 0:00:27]} Bg7 {[%emt 0:00:24]} 4. d4 {[%emt 0:00:17]} cxd4 {[%emt 0:00:39]} 5. Nxd4 {[%emt 0:00:08]} Nc6 {[%emt 0:00:36]} 6. Nde2 {[%emt 0:00:11]} Nf6 {[%emt 0:01:08]} 7. g3 {[%emt 0:00:14]} O-O {[%emt 0:03:14]} 8. Bg2 {[%emt 0:00:07]} Rb8 {[%emt 0:01:51]} 9. a4 {[%emt 0:00:38]} a6 {[%emt 0:01:27]} 10. O-O {[%emt 0:00:35]} b5 {[%emt 0:01:33]} 11. axb5 {[%emt 0:00:45]} axb5 {[%emt 0:00:10]} 12. Nd5 {[%emt 0:03:27]} Nxd5 {[%emt 0:06:33]} 13. exd5 {[%emt 0:00:24]} Ne5 {[%emt 0:00:43]} 14. Ra2 {[%emt 0:15:53]} Bb7 {[%emt 0:06:13]} 15. b3 {[%emt 0:03:20]} Ra8 {[%emt 0:00:55]} 16. Rxa8 {[%emt 0:06:52]} Qxa8 {[%emt 0:00:33]} 17. h3 {[%emt 0:01:30]} d6 {[%emt 0:02:06]} 18. Bg5 {[%emt 0:13:11]} Re8 {[%emt 0:03:24]} 19. Qd2 {[%emt 0:04:30]} b4 {[%emt 0:14:14]} 20. Rd1 {[%emt 0:03:39]} Qa5 {[%emt 0:04:05]} 21. Kh2 {[%emt 0:15:00]} Kf8 {[%emt 0:11:09]} 22. Bh6 {[%emt 0:30:08]} Rc8 {[%emt 0:38:04]} 23. Bxg7+ Kxg7 24. f4 Nd7 {[%emt 0:01:00]} 1/2-1/2

[Event "Lliga Catalana 2024"]
[Site "Catalonia"]
[Date "2024.01.20"]
[Round "1.8"]
[White "Obon Temprano, Sergi"]
[Black "Rovira Vila, Jaume"]
[Result "1/2-1/2"]
[ECO "A06"]
[WhiteElo "2194"]
[BlackElo "2074"]
[Annotator "RC"]
[PlyCount "89"]
[EventDate "2024.01.18"]
[EventType "team-tourn"]
[EventCountry "ESP"]
[SourceTitle "playchess.com"]
[Source "ChessBase"]
[SourceQuality "1"]
[TimeControl "5400+30"]

1. Nf3 {[%emt 1:31:00]} d5 {[%emt 0:03:07]} 2. e3 {[%emt 0:00:00]} e6 {[%emt 0:02:35]} 3. b3 {[%emt 0:00:00]} Nf6 {[%emt 0:01:00]} 4. Bb2 {[%emt 0:00:00]} c5 {[%emt 0:01:42]} 5. d4 {[%emt 0:00:00]} Nc6 {[%emt 0:03:56]} 6. Be2 {[%emt 0:00:00]} Bd6 {[%emt 0:03:11]} 7. O-O {[%emt 0:00:00]} O-O {[%emt 0:00:27]} 8. Nbd2 {[%emt 0:00:00]} b6 {[%emt 0:03:20]} 9. Ne5 {[%emt 0:00:00]} Bb7 {[%emt 0:02:29]} 10. f4 {[%emt 0:00:00]} Ne7 {[%emt 0:05:51]} 11. g4 {[%emt 0:00:00]} Ne4 {[%emt 0:14:16]} 12. Bd3 {[%emt 0:05:30]} Nxd2 {[%emt 0:06:09]} 13. Qxd2 {[%emt 0:00:00]} f6 {[%emt 0:00:15]} 14. Nf3 {[%emt 0:00:00]} a5 {[%emt 0:01:23]} 15. a4 {[%emt 0:00:00]} Qc7 {[%emt 0:03:13]} 16. c3 {[%emt 0:00:00]} Ba6 {[%emt 0:01:41]} 17. c4 {[%emt 0:00:00]} Rad8 {[%emt 0:12:45]} 18. Qc2 {[%emt 0:00:00]} h6 {[%emt 0:03:11]} 19. Rac1 {[%emt 0:00:00]} Bb7 {[%emt 0:06:36]} 20. Qe2 {[%emt 0:00:00]} Qd7 {[%emt 0:04:35]} 21. h3 {[%emt 0:00:00]} Nc6 {[%emt 0:04:35]} 22. cxd5 {[%emt 0:00:00]} exd5 {[%emt 0:00:44]} 23. Nh4 {[%emt 0:00:00]} Ne7 {[%emt 0:01:15]} 24. Bb1 {[%emt 0:00:00]} Bc8 {[%emt 0:02:20]} 25. Rf2 {[%emt 0:00:00]} Qe6 {[%emt 0:00:50]} 26. Rg2 {[%emt 0:01:19]} g5 {[%emt 0:00:34]} 27. Nf5 {[%emt 0:03:52]} Nxf5 {[%emt 0:02:33]} 28. gxf5 {[%emt 0:00:05]} Qe7 {[%emt 0:00:16]} 29. Re1 {[%emt 0:00:52]} Rf7 {[%emt 0:01:11]} 30. h4 {[%emt 0:01:03]} Rg7 {[%emt 0:01:19]} 31. fxg5 {[%emt 0:00:41]} hxg5 {[%emt 0:00:08]} 32. dxc5 {[%emt 0:00:43]} Bxc5 {[%emt 0:02:03]} 33. hxg5 {[%emt 0:00:48]} Rxg5 {[%emt 0:00:13]} 34. Rxg5+ {[%emt 0:00:16]} fxg5 {[%emt 0:00:08]} 35. Qh5 {[%emt 0:00:41]} Bxe3+ {[%emt 0:00:28]} 36. Kg2 {[%emt 0:00:47]} d4 {[%emt 0:00:03]} 37. Qg6+ {[%emt 0:00:42]} Kf8 {[%emt 0:00:07]} 38. f6 {[%emt 0:00:20]} Bb7+ {[%emt 0:01:05]} 39. Kf1 {[%emt 0:00:13]} Ba6+ {[%emt 0:00:01]} 40. Kg2 {[%emt 0:00:08]} Bb7+ {[%emt 0:00:50]} 41. Kf1 {[%emt 0:02:00]} Ba6+ {[%emt 0:08:35]} 42. Kg2 Qf7 {[%emt 0:00:30]} 43. Qh6+ {[%emt 0:01:00]} Kg8 {[%emt 0:00:30]} 44. Bc2 {[%emt 0:00:30]} Qg6 {[%emt 0:00:30]} 45. Ba3 1/2-1/2

[Event "Lliga Catalana 2024"]
[Site "Catalonia"]
[Date "2024.01.20"]
[Round "1.8"]
[White "Saguillo Gonzalez, Oriol"]
[Black "Dorca Dilme, Ramon"]
[Result "1-0"]
[ECO "C10"]
[WhiteElo "2172"]
[BlackElo "2072"]
[Annotator "RC"]
[PlyCount "101"]
[EventDate "2024.01.18"]
[EventType "team-tourn"]
[EventCountry "ESP"]
[SourceTitle "playchess.com"]
[Source "ChessBase"]
[SourceQuality "1"]
[TimeControl "5400+30"]

1. e4 {[%emt 0:08:09]} e6 {[%emt 0:00:24]} 2. d4 {[%emt 0:00:47]} d5 {[%emt 0:00:19]} 3. Nc3 {[%emt 0:01:02]} dxe4 {[%emt 0:01:25]} 4. Nxe4 {[%emt 0:00:50]} Bd7 {[%emt 0:00:14]} 5. Nf3 {[%emt 0:03:54]} Bc6 {[%emt 0:00:13]} 6. Bd3 {[%emt 0:01:57]} Nd7 {[%emt 1:30:55]} 7. Bf4 {[%emt 0:05:28]} Ngf6 {[%emt 0:00:30]} 8. Qe2 {[%emt 0:06:40]} Be7 {[%emt 0:00:00]} 9. h3 {[%emt 0:01:42]} O-O {[%emt 0:01:00]} 10. c3 {[%emt 1:05:01]} Nxe4 {[%emt 0:00:00]} 11. Bxe4 {[%emt 0:00:00]} Bxe4 {[%emt 0:00:00]} 12. Qxe4 {[%emt 0:00:00]} c6 {[%emt 0:00:00]} 13. O-O {[%emt 0:01:30]} Nf6 {[%emt 0:00:00]} 14. Qc2 {[%emt 0:00:30]} Nd5 {[%emt 0:02:30]} 15. Be5 {[%emt 0:00:00]} f6 {[%emt 0:00:00]} 16. Bh2 {[%emt 0:00:00]} Bd6 {[%emt 0:00:00]} 17. Rfe1 {[%emt 0:01:30]} Bxh2+ {[%emt 0:00:00]} 18. Kxh2 {[%emt 0:00:00]} Qd6+ {[%emt 0:00:00]} 19. Kg1 {[%emt 0:00:00]} Rfe8 {[%emt 0:00:00]} 20. Re4 {[%emt 0:01:30]} b6 {[%emt 0:03:00]} 21. Rae1 {[%emt 0:00:30]} Nc7 {[%emt 0:00:30]} 22. Rh4 {[%emt 0:00:00]} g6 {[%emt 0:00:00]} 23. Rhe4 {[%emt 0:01:00]} Re7 {[%emt 0:00:00]} 24. h4 {[%emt 0:00:00]} Rae8 {[%emt 0:01:30]} 25. h5 {[%emt 0:01:00]} gxh5 {[%emt 0:00:30]} 26. c4 {[%emt 0:00:30]} c5 {[%emt 0:00:30]} 27. Rh4 {[%emt 0:00:30]} cxd4 {[%emt 0:00:30]} 28. Nxd4 {[%emt 0:00:30]} Qc5 {[%emt 0:00:00]} 29. Qe2 {[%emt 0:00:30]} Rg7 {[%emt 0:01:00]} 30. Nb3 {[%emt 0:00:30]} Qg5 {[%emt 0:00:30]} 31. Rh2 {[%emt 0:00:30]} h4 {[%emt 0:00:00]} 32. Qe4 {[%emt 0:00:30]} e5 {[%emt 0:01:00]} 33. c5 {[%emt 0:00:30]} f5 {[%emt 0:00:30]} 34. Qxh4 {[%emt 0:00:30]} Qg6 {[%emt 0:00:30]} 35. Qa4 {[%emt 0:00:30]} Nd5 {[%emt 0:00:30]} 36. Qc4 {[%emt 0:00:30]} Qf7 {[%emt 0:00:30]} 37. Nd4 {[%emt 0:00:30]} Nf4 {[%emt 0:00:30]} 38. Qxf7+ {[%emt 0:00:00]} Rxf7 {[%emt 0:00:30]} 39. c6 {[%emt 0:01:00]} Nd3 {[%emt 0:00:00]} 40. Re2 {[%emt 0:00:00]} Rc8 {[%emt 0:00:00]} 41. Rh3 {[%emt 0:01:00]} Nf4 {[%emt 0:00:00]} 42. Rg3+ {[%emt 0:00:30]} Rg7 {[%emt 0:00:00]} 43. Rxg7+ {[%emt 0:00:30]} Kxg7 {[%emt 0:02:30]} 44. Rxe5 {[%emt 0:00:30]} Nd3 {[%emt 0:00:30]} 45. Re7+ {[%emt 0:00:30]} Kg6 {[%emt 0:00:30]} 46. Rxa7 {[%emt 0:00:00]} Nxb2 {[%emt 0:00:00]} 47. c7 {[%emt 0:01:00]} Nc4 {[%emt 0:01:00]} 48. Nb5 {[%emt 0:00:30]} Kf6 {[%emt 0:00:30]} 49. Rb7 {[%emt 0:00:30]} Ke6 {[%emt 0:00:30]} 50. Na7 {[%emt 0:00:30]} Nd6 {[%emt 0:00:00]} 51. Nxc8 {[%emt 0:00:30]} 1-0